fUST/lending_fUST_20250729
["ID","MTS","AMOUNT","RATE_DAILY","PERIOD"]
[375746628,1753728653364,-312.16666667,0.0002081,2]
[375746630,1753728653374,-214.87999826,0.0002081,2]
[375746632,1753728653384,-160.0,0.0002081,2]
[375746634,1753728653393,-160.0,0.0002081,2]
[375746636,1753728653402,-460.0,0.00020821,2]
[375746638,1753728653412,-460.0,0.00020821,2]
[375746640,1753728653421,-460.0,0.00020821,2]
[375746642,1753728653430,-460.0,0.00020821,2]
[375746644,1753728653439,-390.81005583,0.00020821,2]
[375746646,1753728653448,-460.0,0.00020821,2]
[375746648,1753728653457,-529.63,0.00020821,2]
[375746650,1753728653466,-460.0,0.00020821,2]
[375746652,1753728653475,-239.712321,0.00020821,2]
[375746654,1753728653485,-596.35,0.00020821,2]
[375746656,1753728653494,-460.0,0.00020821,2]
[375746658,1753728653503,-669.61,0.00020821,2]
[375746660,1753728653513,-460.0,0.00020821,2]
[375746662,1753728653523,-460.0,0.00020821,2]
[375746664,1753728653533,-460.0,0.00020821,2]
[375746666,1753728653548,-460.0,0.00020821,2]
[375746668,1753728653557,-460.0,0.00020821,2]
[375746670,1753728653566,-460.0,0.00020821,2]
[375746672,1753728653576,-460.0,0.00020821,2]
[375746674,1753728653585,-460.0,0.00020821,2]
[375746676,1753728653595,-460.0,0.00020821,2]
[375746678,1753728653605,-460.0,0.00020821,2]
[375746680,1753728653614,-460.0,0.00020821,2]
[375746682,1753728653623,-460.0,0.00020821,2]
[375746684,1753728653633,-460.0,0.00020821,2]
[375746685,1753728653642,-460.0,0.00020821,2]
[375746687,1753728653651,-4529.8,0.00020821,2]
[375746689,1753728653660,-653.77,0.00020821,2]
[375746691,1753728653669,-460.0,0.00020821,2]
[375746693,1753728653679,-460.0,0.00020821,2]
[375746694,1753728653688,-1040.96,0.00020821,2]
[375746696,1753728653698,-460.0,0.00020821,2]
[375746698,1753728653709,-460.0,0.00020821,2]
[375746700,1753728653719,-460.0,0.00020821,2]
[375746702,1753728653728,-737.77,0.00020821,2]
[375746704,1753728653737,-460.0,0.00020821,2]
[375746706,1753728653746,-228.82,0.00020821,2]
[375746708,1753728653755,-460.0,0.00020821,2]
[375746710,1753728653765,-460.0,0.00020821,2]
[375746712,1753728653774,-889.54,0.00020821,2]
[375746714,1753728653784,-1631.04,0.00020821,2]
[375746716,1753728653792,-663.68,0.00020821,2]
[375746717,1753728653802,-558.03823989,0.00020821,2]
[375746719,1753728653813,-460.0,0.00020821,2]
[375746721,1753728653822,-460.0,0.00020821,2]
[375746723,1753728653832,-460.0,0.00020821,2]
[375746725,1753728653844,-460.0,0.00020821,2]
[375746727,1753728653854,-571.78,0.00020821,2]
[375746729,1753728653865,-460.0,0.00020821,2]
[375746731,1753728653875,-476.40567855,0.00020821,2]
[375746733,1753728653885,-460.0,0.00020821,2]
[375746735,1753728653895,-460.0,0.00020821,2]
[375746737,1753728653904,-460.0,0.00020821,2]
[375746739,1753728653913,-2206.83,0.00020821,2]
[375746741,1753728653923,-460.0,0.00020821,2]
[375746743,1753728653932,-460.0,0.00020821,2]
[375746745,1753728653941,-460.0,0.00020821,2]
[375746747,1753728653951,-2652.51,0.00020821,2]
[375746748,1753728653960,-586.34,0.00020821,2]
[375746750,1753728653970,-460.0,0.00020821,2]
[375746752,1753728653979,-2020.25,0.00020821,2]
[375746754,1753728653989,-460.0,0.00020821,2]
[375746756,1753728653999,-460.0,0.00020821,2]
[375746758,1753728654011,-286.59036576,0.00020821,2]
[375746760,1753728654021,-460.0,0.00020821,2]
[375746762,1753728654030,-721.07,0.00020821,2]
[375746764,1753728654039,-1809.26,0.00020821,2]
[375746766,1753728654049,-578.54,0.00020821,2]
[375746768,1753728654059,-3123.56,0.00020821,2]
[375746770,1753728654069,-483.87930488,0.00020821,2]
[375746772,1753728654078,-460.0,0.00020821,2]
[375746774,1753728654091,-460.0,0.00020821,2]
[375746775,1753728654100,-460.0,0.00020821,2]
[375746777,1753728654110,-460.0,0.00020821,2]
[375746779,1753728654119,-460.0,0.00020821,2]
[375746781,1753728654128,-502.28,0.00020821,2]
[375746783,1753728654137,-460.0,0.00020821,2]
[375746785,1753728654146,-460.0,0.00020821,2]
[375746787,1753728654155,-1869.87,0.00020821,2]
[375746789,1753728654164,-460.0,0.00020821,2]
[375746790,1753728654173,-514.36,0.00020821,2]
[375746792,1753728654182,-568.64,0.00020821,2]
[375746794,1753728654192,-713.15,0.00020821,2]
[375746796,1753728654201,-1636.44,0.00020821,2]
[375746798,1753728654211,-460.0,0.00020821,2]
[375746800,1753728654222,-1983.84,0.00020821,2]
[375746802,1753728654233,-460.0,0.00020821,2]
[375746804,1753728654242,-2799.18,0.00020821,2]
[375746806,1753728654251,-643.74,0.00020821,2]
[375746808,1753728654261,-510.82,0.00020821,2]
[375746810,1753728654270,-1672.09,0.00020821,2]
[375746812,1753728654279,-460.0,0.00020821,2]
[375746814,1753728654288,-6580.44,0.00020821,2]
[375746816,1753728654298,-605.7,0.00020821,2]
[375746818,1753728654307,-730.72,0.00020821,2]
[375746820,1753728654315,-460.0,0.00020821,2]
[375746822,1753728654324,-460.0,0.00020821,2]
[375746823,1753728654333,-460.0,0.00020821,2]
[375746825,1753728654345,-460.0,0.00020821,2]
[375746827,1753728654354,-516.51,0.00020821,2]
[375746829,1753728654363,-460.0,0.00020821,2]
[375746831,1753728654372,-460.0,0.00020821,2]
[375746833,1753728654381,-726.82,0.00020821,2]
[375746835,1753728654391,-460.0,0.00020821,2]
[375746837,1753728654400,-892.16,0.00020821,2]
[375746839,1753728654409,-460.0,0.00020821,2]
[375746841,1753728654419,-500.0,0.00020881,2]
[375746843,1753728654428,-500.0,0.00020881,2]
[375746845,1753728654437,-480.0,0.00020894,2]
[375746847,1753728654447,-1209.14776071,0.00020916,2]
[375746848,1753728654456,-266.9,0.00020966,2]
[375746850,1753728654465,-260.0,0.00020989,2]
[375746852,1753728654474,-189.988435,0.00021,2]
[375746854,1753728654483,-1500.0,0.00021068,2]
[375746856,1753728654493,-460.0,0.00021095,2]
[375746858,1753728654502,-460.0,0.00021095,2]
[375746860,1753728654511,-460.0,0.00021095,2]
[375746862,1753728654521,-460.0,0.00021095,2]
[375746864,1753728654530,-529.63,0.00021095,2]
[375746866,1753728654539,-460.0,0.00021095,2]
[375746867,1753728654548,-460.0,0.00021095,2]
[375746869,1753728654557,-669.61,0.00021095,2]
[375746871,1753728654566,-460.0,0.00021095,2]
[375746873,1753728654576,-468.13037485,0.00021095,2]
[375746875,1753728654585,-460.0,0.00021095,2]
[375746877,1753728654597,-460.0,0.00021095,2]
[375746879,1753728654606,-460.0,0.00021095,2]
[375746881,1753728654615,-460.0,0.00021095,2]
[375746883,1753728654625,-460.0,0.00021095,2]
[375746885,1753728654634,-460.0,0.00021095,2]
[375746887,1753728654643,-460.0,0.00021095,2]
[375746888,1753728654652,-460.0,0.00021095,2]
[375746890,1753728654661,-460.0,0.00021095,2]
[375746892,1753728654670,-460.0,0.00021095,2]
[375746894,1753728654680,-460.0,0.00021095,2]
[375746906,1753728654790,-460.0,0.00021095,2]
[375746908,1753728654800,-4529.8,0.00021095,2]
[375746910,1753728654809,-653.77,0.00021095,2]
[375746911,1753728654819,-460.0,0.00021095,2]
[375746913,1753728654828,-460.0,0.00021095,2]
[375746915,1753728654837,-1040.96,0.00021095,2]
[375746917,1753728654848,-460.0,0.00021095,2]
[375746919,1753728654857,-460.0,0.00021095,2]
[375746921,1753728654867,-460.0,0.00021095,2]
[375746923,1753728654876,-737.77,0.00021095,2]
[375746925,1753728654886,-345.83165487,0.00021095,2]
[375746927,1753728654895,-460.0,0.00021095,2]
[375746929,1753728654904,-460.0,0.00021095,2]
[375746931,1753728654913,-889.54,0.00021095,2]
[375746933,1753728654923,-1631.04,0.00021095,2]
[375746934,1753728654932,-663.68,0.00021095,2]
[375746936,1753728654941,-460.0,0.00021095,2]
[375746938,1753728654950,-460.0,0.00021095,2]
[375746940,1753728654960,-460.0,0.00021095,2]
[375746942,1753728654969,-460.0,0.00021095,2]
[375746944,1753728654979,-571.78,0.00021095,2]
[375746946,1753728654989,-460.0,0.00021095,2]
[375746948,1753728654999,-460.0,0.00021095,2]
[375746950,1753728655010,-460.0,0.00021095,2]
[375746952,1753728655019,-460.0,0.00021095,2]
[375746954,1753728655028,-2206.83,0.00021095,2]
[375746956,1753728655038,-460.0,0.00021095,2]
[375746958,1753728655048,-460.0,0.00021095,2]
[375746960,1753728655057,-460.0,0.00021095,2]
[375746962,1753728655066,-2652.51,0.00021095,2]
[375746963,1753728655076,-586.34,0.00021095,2]
[375746965,1753728655085,-460.0,0.00021095,2]
[375746967,1753728655097,-2020.25,0.00021095,2]
[375746969,1753728655106,-460.0,0.00021095,2]
[375746971,1753728655115,-460.0,0.00021095,2]
[375746973,1753728655124,-460.0,0.00021095,2]
[375746975,1753728655134,-721.07,0.00021095,2]
[375746977,1753728655143,-1809.26,0.00021095,2]
[375746979,1753728655152,-578.54,0.00021095,2]
[375746981,1753728655162,-3123.56,0.00021095,2]
[375746982,1753728655172,-469.01104846,0.00021095,2]
[375746983,1753728655182,-460.0,0.00021095,2]
[375746984,1753728655191,-396.6526537,0.00021095,2]
[375746985,1753728655200,-460.0,0.00021095,2]
[375746986,1753728655209,-502.28,0.00021095,2]
[375746987,1753728655218,-460.0,0.00021095,2]
[375746988,1753728655228,-460.0,0.00021095,2]
[375746989,1753728655237,-1869.87,0.00021095,2]
[375746990,1753728655247,-460.0,0.00021095,2]
[375746991,1753728655256,-514.36,0.00021095,2]
[375746992,1753728655264,-568.64,0.00021095,2]
[375746993,1753728655273,-713.15,0.00021095,2]
[375746994,1753728655283,-1636.44,0.00021095,2]
[375746995,1753728655292,-460.0,0.00021095,2]
[375746996,1753728655301,-1983.84,0.00021095,2]
[375746997,1753728655310,-460.0,0.00021095,2]
[375746998,1753728655320,-2799.18,0.00021095,2]
[375746999,1753728655329,-643.74,0.00021095,2]
[375747001,1753728655339,-510.82,0.00021095,2]
[375747003,1753728655349,-1672.09,0.00021095,2]
[375747005,1753728655358,-460.0,0.00021095,2]
[375747007,1753728655367,-6580.44,0.00021095,2]
[375747009,1753728655376,-605.7,0.00021095,2]
[375747011,1753728655386,-730.72,0.00021095,2]
[375747013,1753728655395,-490.22,0.00021095,2]
[375747015,1753728655404,-460.0,0.00021095,2]
[375747017,1753728655413,-460.0,0.00021095,2]
[375747019,1753728655422,-460.0,0.00021095,2]
[375747021,1753728655431,-516.51,0.00021095,2]
[375747023,1753728655441,-460.0,0.00021095,2]
[375747025,1753728655450,-460.0,0.00021095,2]
[375747027,1753728655459,-726.82,0.00021095,2]
[375747029,1753728655468,-460.0,0.00021095,2]
[375747031,1753728655477,-892.16,0.00021095,2]
[375747033,1753728655486,-460.0,0.00021095,2]
[375747035,1753728655495,-385.84525188,0.00021143,2]
[375747037,1753728655504,-495.6,0.00021172,4]
[375747039,1753728655513,-3006.81739436,0.00021329,2]
[375747041,1753728655522,-460.0,0.00021369,2]
[375747043,1753728655532,-460.0,0.00021369,2]
[375747045,1753728655541,-460.0,0.00021369,2]
[375747047,1753728655551,-529.63,0.00021369,2]
[375747049,1753728655559,-460.0,0.00021369,2]
[375747051,1753728655569,-460.0,0.00021369,2]
[375747053,1753728655578,-669.61,0.00021369,2]
[375747055,1753728655587,-460.0,0.00021369,2]
[375747057,1753728655597,-460.0,0.00021369,2]
[375747059,1753728655606,-460.0,0.00021369,2]
[375747061,1753728655616,-460.0,0.00021369,2]
[375747063,1753728655625,-460.0,0.00021369,2]
[375747065,1753728655634,-460.0,0.00021369,2]
[375747067,1753728655643,-460.0,0.00021369,2]
[375747069,1753728655652,-460.0,0.00021369,2]
[375747071,1753728655661,-460.0,0.00021369,2]
[375747073,1753728655670,-460.0,0.00021369,2]
[375747075,1753728655679,-4529.8,0.00021369,2]
[375747077,1753728655688,-653.77,0.00021369,2]
[375747079,1753728655697,-460.0,0.00021369,2]
[375747081,1753728655707,-460.0,0.00021369,2]
[375747083,1753728655716,-1040.96,0.00021369,2]
[375747084,1753728655725,-460.0,0.00021369,2]
[375747086,1753728655734,-592.39619859,0.00021369,2]
[375747088,1753728655743,-460.0,0.00021369,2]
[375747090,1753728655752,-737.77,0.00021369,2]
[375747092,1753728655761,-460.0,0.00021369,2]
[375747094,1753728655771,-460.0,0.00021369,2]
[375747096,1753728655780,-889.54,0.00021369,2]
[375747098,1753728655789,-1631.04,0.00021369,2]
[375747100,1753728655799,-663.68,0.00021369,2]
[375747102,1753728655810,-316.78184182,0.00021369,2]
[375747104,1753728655819,-460.0,0.00021369,2]
[375747106,1753728655829,-571.55,0.00021369,2]
[375747108,1753728655838,-460.0,0.00021369,2]
[375747110,1753728655848,-571.78,0.00021369,2]
[375747112,1753728655857,-460.0,0.00021369,2]
[375747114,1753728655866,-460.0,0.00021369,2]
[375747116,1753728655876,-460.0,0.00021369,2]
[375747118,1753728655886,-2206.83,0.00021369,2]
[375747120,1753728655896,-460.0,0.00021369,2]
[375747122,1753728655905,-460.0,0.00021369,2]
[375747124,1753728655915,-2652.51,0.00021369,2]
[375747126,1753728655924,-460.0,0.00021369,2]
[375747128,1753728655933,-586.34,0.00021369,2]
[375747130,1753728655943,-2020.25,0.00021369,2]
[375747132,1753728655952,-460.0,0.00021369,2]
[375747134,1753728655962,-460.0,0.00021369,2]
[375747136,1753728655971,-460.0,0.00021369,2]
[375747138,1753728655981,-721.07,0.00021369,2]
[375747140,1753728655991,-1809.26,0.00021369,2]
[375747142,1753728656000,-578.54,0.00021369,2]
[375747144,1753728656018,-3123.56,0.00021369,2]
[375747146,1753728656028,-192.31603521,0.00021369,2]
[375747148,1753728656037,-460.0,0.00021369,2]
[375747150,1753728656046,-502.28,0.00021369,2]
[375747152,1753728656056,-460.0,0.00021369,2]
[375747154,1753728656066,-460.0,0.00021369,2]
[375747156,1753728656076,-1869.87,0.00021369,2]
[375747158,1753728656085,-460.0,0.00021369,2]
[375747160,1753728656095,-514.36,0.00021369,2]
[375747162,1753728656104,-568.64,0.00021369,2]
[375747164,1753728656114,-713.15,0.00021369,2]
[375747166,1753728656123,-460.0,0.00021369,2]
[375747168,1753728656133,-1983.84,0.00021369,2]
[375747170,1753728656143,-1636.44,0.00021369,2]
[375747172,1753728656153,-526.66642539,0.00021369,2]
[375747174,1753728656162,-2799.18,0.00021369,2]
[375747176,1753728656173,-643.74,0.00021369,2]
[375747178,1753728656183,-510.82,0.00021369,2]
[375747180,1753728656194,-1672.09,0.00021369,2]
[375747182,1753728656203,-460.0,0.00021369,2]
[375747184,1753728656212,-6580.44,0.00021369,2]
[375747186,1753728656222,-730.72,0.00021369,2]
[375747188,1753728656232,-605.7,0.00021369,2]
[375747190,1753728656241,-460.0,0.00021369,2]
[375747192,1753728656251,-460.0,0.00021369,2]
[375747194,1753728656260,-516.51,0.00021369,2]
[375747196,1753728656270,-460.0,0.00021369,2]
[375747198,1753728656280,-457.43506182,0.00021369,2]
[375747200,1753728656290,-726.82,0.00021369,2]
[375747202,1753728656302,-460.0,0.00021369,2]
[375747204,1753728656312,-892.16,0.00021369,2]
[375747206,1753728656321,-460.0,0.00021369,2]
[375747208,1753728656330,-500.0,0.00021371,2]
[375747210,1753728656339,-1000.0,0.00021429,2]
[375747212,1753728656349,-1003.7701983,0.00021429,2]
[375747214,1753728656359,-200.0,0.00021473,15]
[375747216,1753728656368,-200.0,0.00021473,15]
[375747218,1753728656377,-200.0,0.00021473,15]
[375747220,1753728656386,-200.0,0.00021473,15]
[375747222,1753728656396,-320.0,0.00021473,15]
[375747224,1753728656405,-151.0,0.000215,4]
[375747226,1753728656414,-360.0,0.00021537,2]
[375747228,1753728656423,-495.6,0.00021545,4]
[375747230,1753728656433,-2000.0,0.00021616,2]
[375747232,1753728656442,-1309.888,0.00021638,2]
[375747234,1753728656452,-179.10568291,0.00021638,2]
[375747236,1753728656461,-460.0,0.00021643,2]
[375747238,1753728656470,-460.0,0.00021643,2]
[375747240,1753728656479,-460.0,0.00021643,2]
[375747242,1753728656488,-529.63,0.00021643,2]
[375747244,1753728656498,-460.0,0.00021643,2]
[375747246,1753728656506,-669.61,0.00021643,2]
[375747248,1753728656516,-460.0,0.00021643,2]
[375747250,1753728656524,-417.12742049,0.00021643,2]
[375747252,1753728656533,-460.0,0.00021643,2]
[375747254,1753728656543,-460.0,0.00021643,2]
[375747256,1753728656552,-460.0,0.00021643,2]
[375747258,1753728656561,-460.0,0.00021643,2]
[375747260,1753728656571,-460.0,0.00021643,2]
[375747262,1753728656580,-460.0,0.00021643,2]
[375747264,1753728656589,-460.0,0.00021643,2]
[375747266,1753728656600,-4529.8,0.00021643,2]
[375747268,1753728656609,-653.77,0.00021643,2]
[375747270,1753728656618,-460.0,0.00021643,2]
[375747272,1753728656627,-460.0,0.00021643,2]
[375747274,1753728656637,-1040.96,0.00021643,2]
[375747276,1753728656646,-460.0,0.00021643,2]
[375747278,1753728656656,-460.0,0.00021643,2]
[375747280,1753728656665,-737.77,0.00021643,2]
[375747282,1753728656674,-460.0,0.00021643,2]
[375747284,1753728656683,-460.0,0.00021643,2]
[375747286,1753728656692,-889.54,0.00021643,2]
[375747288,1753728656702,-1631.04,0.00021643,2]
[375747290,1753728656711,-663.68,0.00021643,2]
[375747292,1753728656720,-460.0,0.00021643,2]
[375747294,1753728656729,-460.0,0.00021643,2]
[375747296,1753728656738,-571.78,0.00021643,2]
[375747298,1753728656747,-460.0,0.00021643,2]
[375747300,1753728656757,-460.0,0.00021643,2]
[375747302,1753728656766,-460.0,0.00021643,2]
[375747304,1753728656775,-2206.83,0.00021643,2]
[375747306,1753728656784,-460.0,0.00021643,2]
[375747308,1753728656793,-460.0,0.00021643,2]
[375747310,1753728656803,-2652.51,0.00021643,2]
[375747312,1753728656812,-460.0,0.00021643,2]
[375747314,1753728656822,-586.34,0.00021643,2]
[375747316,1753728656832,-2020.25,0.00021643,2]
[375747318,1753728656842,-460.0,0.00021643,2]
[375747320,1753728656851,-460.0,0.00021643,2]
[375747322,1753728656861,-460.0,0.00021643,2]
[375747324,1753728656870,-721.07,0.00021643,2]
[375747326,1753728656879,-1809.26,0.00021643,2]
[375747338,1753728656984,-578.54,0.00021643,2]
[375747340,1753728656994,-3123.56,0.00021643,2]
[375747342,1753728657009,-388.99381343,0.00021643,2]
[375747344,1753728657019,-502.28,0.00021643,2]
[375747346,1753728657029,-460.0,0.00021643,2]
[375747348,1753728657039,-460.0,0.00021643,2]
[375747350,1753728657050,-1869.87,0.00021643,2]
[375747352,1753728657060,-460.0,0.00021643,2]
[375747354,1753728657070,-514.36,0.00021643,2]
[375747356,1753728657081,-568.64,0.00021643,2]
[375747358,1753728657090,-713.15,0.00021643,2]
[375747360,1753728657100,-460.0,0.00021643,2]
[375747362,1753728657110,-1983.84,0.00021643,2]
[375747364,1753728657119,-1636.44,0.00021643,2]
[375747366,1753728657128,-2799.18,0.00021643,2]
[375747368,1753728657138,-643.74,0.00021643,2]
[375747370,1753728657147,-510.82,0.00021643,2]
[375747372,1753728657156,-1672.09,0.00021643,2]
[375747374,1753728657165,-460.0,0.00021643,2]
[375747376,1753728657174,-6580.44,0.00021643,2]
[375747378,1753728657184,-730.72,0.00021643,2]
[375747380,1753728657193,-605.7,0.00021643,2]
[375747382,1753728657203,-460.0,0.00021643,2]
[375747384,1753728657212,-460.0,0.00021643,2]
[375747386,1753728657222,-516.51,0.00021643,2]
[375747388,1753728657232,-460.0,0.00021643,2]
[375747390,1753728657241,-726.82,0.00021643,2]
[375747392,1753728657250,-460.0,0.00021643,2]
[375747394,1753728657259,-892.16,0.00021643,2]
[375747396,1753728657269,-460.0,0.00021643,2]
[375747398,1753728657278,-1833.0,0.00021652,2]
[375747400,1753728657287,-446.08885623,0.00021917,2]
[375747402,1753728657298,-460.0,0.00021917,2]
[375747404,1753728657307,-460.0,0.00021917,2]
[375747406,1753728657316,-529.63,0.00021917,2]
[375747408,1753728657325,-460.0,0.00021917,2]
[375747410,1753728657334,-669.61,0.00021917,2]
[375747412,1753728657343,-460.0,0.00021917,2]
[375747414,1753728657352,-460.0,0.00021917,2]
[375747415,1753728657361,-460.0,0.00021917,2]
[375747418,1753728657371,-256.05991759,0.00021917,2]
[375747420,1753728657381,-460.0,0.00021917,2]
[375747422,1753728657390,-478.27,0.00021917,2]
[375747424,1753728657399,-460.0,0.00021917,2]
[375747425,1753728657409,-500.0,0.00021917,2]
[375747428,1753728657418,-500.0,0.00021917,2]
[375747429,1753728657428,-500.0,0.00021917,2]
[375747431,1753728657437,-500.0,0.00021917,2]
[375747433,1753728657447,-500.0,0.00021917,2]
[375747435,1753728657456,-500.0,0.00021917,2]
[375747437,1753728657466,-500.0,0.00021917,2]
[375747440,1753728657477,-500.0,0.00021917,2]
[375747441,1753728657488,-500.0,0.00021917,2]
[375747444,1753728657498,-500.0,0.00021917,2]
[375747445,1753728657507,-500.0,0.00021917,2]
[375747447,1753728657517,-4529.8,0.00021917,2]
[375747449,1753728657526,-653.77,0.00021917,2]
[375747451,1753728657536,-460.0,0.00021917,2]
[375747453,1753728657545,-460.0,0.00021917,2]
[375747455,1753728657554,-1040.96,0.00021917,2]
[375747457,1753728657564,-460.0,0.00021917,2]
[375747459,1753728657573,-460.0,0.00021917,2]
[375747461,1753728657582,-737.77,0.00021917,2]
[375747463,1753728657592,-460.0,0.00021917,2]
[375747465,1753728657602,-225.2728458,0.00021917,2]
[375747486,1753728657784,-311.6471542,0.00021917,2]
[375747488,1753728657794,-889.54,0.00021917,2]
[375747490,1753728657803,-1631.04,0.00021917,2]
[375747492,1753728657812,-663.68,0.00021917,2]
[375747494,1753728657822,-460.0,0.00021917,2]
[375747496,1753728657832,-571.78,0.00021917,2]
[375747498,1753728657843,-460.0,0.00021917,2]
[375747500,1753728657853,-460.0,0.00021917,2]
[375747502,1753728657862,-460.0,0.00021917,2]
[375747504,1753728657872,-460.0,0.00021917,2]
[375747506,1753728657882,-2206.83,0.00021917,2]
[375747508,1753728657892,-460.0,0.00021917,2]
[375747510,1753728657901,-2652.51,0.00021917,2]
[375747512,1753728657910,-460.0,0.00021917,2]
[375747514,1753728657920,-586.34,0.00021917,2]
[375747516,1753728657929,-2020.25,0.00021917,2]
[375747518,1753728657938,-460.0,0.00021917,2]
[375747520,1753728657947,-460.0,0.00021917,2]
[375747522,1753728657957,-460.0,0.00021917,2]
[375747524,1753728657966,-721.07,0.00021917,2]
[375747526,1753728657977,-1809.26,0.00021917,2]
[375747528,1753728657987,-578.54,0.00021917,2]
[375747530,1753728657997,-3123.56,0.00021917,2]
[375747532,1753728658014,-502.28,0.00021917,2]
[375747534,1753728658024,-460.0,0.00021917,2]
[375747536,1753728658034,-1869.87,0.00021917,2]
[375747539,1753728658046,-460.0,0.00021917,2]
[375747540,1753728658056,-514.36,0.00021917,2]
[375747542,1753728658065,-568.64,0.00021917,2]
[375747544,1753728658074,-713.15,0.00021917,2]
[375747546,1753728658085,-460.0,0.00021917,2]
[375747548,1753728658095,-1983.84,0.00021917,2]
[375747550,1753728658104,-1636.44,0.00021917,2]
[375747552,1753728658114,-2799.18,0.00021917,2]
[375747554,1753728658124,-643.74,0.00021917,2]
[375747556,1753728658133,-510.82,0.00021917,2]
[375747558,1753728658142,-1672.09,0.00021917,2]
[375747560,1753728658152,-460.0,0.00021917,2]
[375747562,1753728658161,-6580.44,0.00021917,2]
[375747564,1753728658171,-730.72,0.00021917,2]
[375747566,1753728658180,-605.7,0.00021917,2]
[375747568,1753728658189,-308.6608633,0.00021917,2]
[375747570,1753728658198,-460.0,0.00021917,2]
[375747572,1753728658207,-516.51,0.00021917,2]
[375747574,1753728658216,-460.0,0.00021917,2]
[375747576,1753728658225,-726.82,0.00021917,2]
[375747578,1753728658235,-460.0,0.00021917,2]
[375747580,1753728658243,-892.16,0.00021917,2]
[375747582,1753728658254,-495.6,0.00021918,4]
[375747584,1753728658263,-500.0,0.00021918,2]
[375747586,1753728658272,-500.0,0.00021918,2]
[375747588,1753728658281,-488.09798802,0.00021918,2]
[375747590,1753728658291,-1000.0,0.00021919,2]
[375747592,1753728658300,-1833.0,0.00021924,2]
[375747594,1753728658309,-189.988435,0.00021975,2]
[375747596,1753728658318,-1500.0,0.00021977,2]
[375747598,1753728658328,-1833.0,0.00021986,2]
[375747600,1753728658337,-189.988435,0.00022,4]
[375747602,1753728658347,-13614.55,0.00022,7]
[375747604,1753728658356,-312.16666667,0.00022,7]
[375747606,1753728658365,-12634.73134317,0.00022,7]
[375747608,1753728658374,-3217.67,0.00022,7]
[375747610,1753728658383,-51814.44,0.00022,2]
[375747612,1753728658392,-151.0,0.00022,2]
[375747614,1753728658402,-197.0,0.00022,2]
[375747616,1753728658412,-1528.51,0.00022,7]
[375747618,1753728658421,-214.87999826,0.00022,7]
[375747620,1753728658430,-454.6043428,0.00022,7]
[375747622,1753728658440,-460.0,0.00022085,2]
[375747624,1753728658448,-1833.0,0.00022098,2]
[375747626,1753728658457,-385.84525188,0.00022175,2]
[375747627,1753728658467,-460.0,0.00022191,2]
[375747629,1753728658476,-460.0,0.00022191,2]
[375747631,1753728658485,-529.63,0.00022191,2]